Cogmind - Beta 13 *** ADVENTURER MODE // 2024.04.12 @ 17:53:11 Player: Teromax34 Result: Destroyed by D-53 Grenadier with Mini Grenade Launcher Performance ------------- Evolutions (1) 500 Regions Visited (3) 600 Robots Destroyed (15) 75 Value Destroyed (481) 481 Prototype IDs (1) 20 Alien Tech Used (0) 0 Bonus (0) 0 TOTAL SCORE: 1676 Bonus ------- None Cogmind --------- Core Integrity 0/400 Matter 292/300 Energy 100/100 System Corruption 0% Temperature Cool (0) Movement Core (100) Ox1 Location -9/Mines Parts ------- > --- POWER (1) -------- (None) > --- PROPULSION (2) --- (None) > --- UTILITY (3) ------ Small Storage Unit > --- WEAPON (3) ------- Light Assault Rifle > --- INVENTORY (8) ---- Ion Engine Hacking Suite Peak State ------------ > --- POWER ------------ Heavy Ion Engine > --- PROPULSION ------- Light Treads Light Treads > --- UTILITY ---------- Small Storage Unit Compact Matter Pod Sensor Array > --- WEAPON ----------- Small Laser Heavy Assault Rifle Grenade Launcher > --- INVENTORY -------- Ion Engine Core Shielding Hacking Suite Light Assault Rifle Light Assault Rifle [Rating: 14] Favorites ----------- Power Heavy Ion Engine Engine Heavy Ion Engine Propulsion Light Treads Treads Light Treads Utility Small Storage Unit Device Sensor Array Storage Small Storage Unit Protection Core Shielding Weapon Light Assault Rifle Energy Gun Small Laser Ballistic Gun Light Assault Rifle Launcher Grenade Launcher Build | -11 -10 -9 -9 ------- Run | Yrd Mat Mat Min Slots Evolved 2 | . . 2 . Power . | . . . . Propulsion . | . . . . Utility 1 | . . 1 . Weapon 1 | . . 1 . Parts Attached 29 | 6 1 13 9 Power 2 | 1 . 1 . Engine 2 | 1 . 1 . Core . | . . . . Reactor . | . . . . Propulsion 7 | 2 . 5 . Treads 7 | 2 . 5 . Leg . | . . . . Wheel . | . . . . Hover . | . . . . Flight . | . . . . Utility 11 | 1 1 2 7 Device 3 | . 1 1 1 Storage 6 | 1 . . 5 Processor . | . . . . Hackware . | . . . . Protection 2 | . . 1 1 Artifact . | . . . . Weapon 9 | 2 . 5 2 Energy Gun 2 | 1 . 1 . Energy Cannon . | . . . . Ballistic Gun 6 | 1 . 3 2 Ballistic Cannon . | . . . . Launcher 1 | . . 1 . Special Weapon . | . . . . Impact Weapon . | . . . . Slashing Weapon . | . . . . Piercing Weapon . | . . . . Special Melee Weapon . | . . . . Unidentified Prototypes 1 | . . 1 . Parts Lost 11 | . . 2 9 Power 1 | . . . 1 Propulsion 3 | . . 1 2 Utility 2 | . . . 2 Weapon 5 | . . 1 4 Highest Loss Streak 9 | . . 2 9 To Critical Strikes . | . . . . Average Slot Usage (%) 94 | . 91 96 93 Engine 11 | . 14 11 10 Treads 22 | . 28 20 20 Device 9 | . 6 11 10 Storage 11 | . 14 11 11 Protection 7 | . . 9 9 Energy Gun 13 | . 14 16 10 Ballistic Gun 12 | . 14 12 11 Launcher 4 | . . 3 9 Naked Turns . | . . . . Heaviest Build 22 | 11 12 22 22 Greatest Support 40 | 40 40 40 40 Greatest Overweight (x) 4 | . . 4 2 Average Overweight (x) . | . . . . Largest Inventory Capacity 8 | 8 8 8 8 Average Capacity 7 | 6 8 8 8 Most Carried 6 | 2 3 4 6 Average Carried 3 | 1 2 2 3 Final Capacity 8 | 8 8 8 8 Final Carried 4 | 2 3 4 2 Class Distribution -------------------- 36% | Scavenger-Skirmisher 34% | Mutant 28% | Skirmisher Dominant Class ---------------- Mutant | -10/Materials Skirmisher | -9/Materials Scavenger-Skirmisher | -9/Mines Resources | -11 -10 -9 -9 ----------- Run | Yrd Mat Mat Min Matter Collected 508 | 186 44 233 45 Remotely . | . . . . Salvage Created 554 | . 44 421 89 Parts 39 | . 6 25 8 Haulers Intercepted . | . . . . Recyclers Shooed 1 | . . 1 . Parts Field Recycled . | . . . . Retrieved Matter . | . . . . Parts Self-Destructed . | . . . . Prevented . | . . . . Kills | -11 -10 -9 -9 ------- Run | Yrd Mat Mat Min Combat Hostiles Destroyed 10 | . . 7 3 Guns 9 | . . 6 3 AOE 1 | . . 1 . Classes Destroyed 8 | . 1 5 2 Tunneler 1 | . . . 1 Recycler 1 | . . 1 . Operator 1 | . . 1 . Watcher 2 | . 2 . . Grunt 5 | . . 3 2 Duelist 2 | . . 2 . Sentry 2 | . . 2 . Demolisher 1 | . . . 1 Best Kill Streak 3 | . 1 3 2 Combat Bots Only 3 | . . 3 2 Max Kills in Single Turn 1 | . 1 1 1 Gunslinging . | . . . . Exploded 1 | . . 1 . Melee . | . . . . Uniques/NPCs Destroyed . | . . . . Combat | -11 -10 -9 -9 -------- Run | Yrd Mat Mat Min Hostile Shots Fired 114 | . . 55 59 Missed 28 | . . 12 16 Damage Taken 1431 | . . 590 841 Core 408 | . . 101 307 Absorbed by Shields . | . . . . Redirected to Shielding 43 | . . 13 30 Ignored by Resistances 398 | . . 170 228 Core Remaining (%) 100 | 100 100 . . Volleys Fired 48 | . 4 26 18 Largest 3 | . 2 3 3 Hottest 110 | . 60 110 93 Shots Fired 118 | . 8 73 37 Gun 112 | . 8 68 36 Cannon . | . . . . Launcher 6 | . . 5 1 Special . | . . . . Kinetic 63 | . 4 30 29 Thermal 21 | . . 14 7 Explosive 6 | . . 5 1 Electromagnetic 28 | . 4 24 . Robot Hit Streak 37 | . 2 37 9 Robot Miss Streak 3 | . 3 1 2 Penetration Max . | . . . . Secondary Targets 1 | . . 1 . Max Gunslinging Chain 1 | . . 1 . Shots Hit Robots 94 | . 3 63 28 Core Hits 34 | . 2 20 12 Critical Kills . | . . . . Critical Parts Destroyed . | . . . . Critical Strikes . | . . . . Melee Attacks . | . . . . Impact . | . . . . Slashing . | . . . . Piercing . | . . . . Sneak Attacks . | . . . . Combat Hostiles . | . . . . Follow-up Attacks . | . . . . Damage Inflicted 1149 | . 70 748 331 Guns 951 | . 70 580 301 Cannons . | . . . . Explosions 185 | . . 168 17 Melee . | . . . . Ramming 13 | . . . 13 Kinetic 437 | . . 190 247 Thermal 183 | . . 129 54 Explosive 185 | . . 168 17 Electromagnetic 331 | . 70 261 . Impact . | . . . . Slashing . | . . . . Piercing . | . . . . Highest Corruption . | . . . . Average Corruption . | . . . . Corruption Purged . | . . . . Corruption Blocked . | . . . . Overload Shots . | . . . . Overflow Damage . | . . . . Projectiles . | . . . . Explosions . | . . . . Melee . | . . . . Knockbacks 1 | . . . 1 Impact 1 | . . . 1 Kinetic . | . . . . Secondary . | . . . . Self-Inflicted Damage 27 | . . 24 3 Shots 4 | . . 4 . Rammed 7 | . . . 7 Targets Rammed 7 | . . . 7 Kicked . | . . . . Crushed . | . . . . Highest Temperature 459 | . 20 459 51 Average Temperature 135 | . 13 174 21 Received Heat Transfer 345 | . . 219 126 Effects 1 | . . 1 . Shutdowns 1 | . . 1 . Siege Activations . | . . . . Robots Corrupted . | . . . . Combat Hostiles . | . . . . Parts Fried 3 | . 2 1 . Impact Corruptions . | . . . . Robots Melted . | . . . . Combat Hostiles . | . . . . Parts Melted . | . . . . Heat Transferred 425 | . . 300 125 Parts Sabotaged . | . . . . Parts Stolen . | . . . . Parts Stripped . | . . . . Power Chain Reactions . | . . . . Alert | -11 -10 -9 -9 ------- Run | Yrd Mat Mat Min Peak Influence 221 | . 95 221 71 Initial 34 | . . 34 11 Average 65 | . 59 106 41 Maximum Alert Level 1 | . . 1 . Low Security (%) 98 | 100 100 97 100 Level 1 1 | . . 2 . Level 2 . | . . . . Level 3 . | . . . . Level 4 . | . . . . Level 5 . | . . . . High Security . | . . . . Max Security . | . . . . Squads Dispatched 1 | . . 1 . Investigation . | . . . . Extermination . | . . . . Reinforcement 1 | . . 1 . Assault . | . . . . Garrison . | . . . . Intercept . | . . . . Searches Triggered . | . . . . Construction Impeded . | . . . . Haulers Reinforced . | . . . . Active Scanning Responses . | . . . . Cargo Convoy Interrupts . | . . . . Stealth | -11 -10 -9 -9 --------- Run | Yrd Mat Mat Min Distress Signals . | . . . . Communications Jammed . | . . . . Distress Signals . | . . . . Times Spotted 19 | . 2 11 6 Peak Tracking Total 4 | . 1 3 4 Tactical Retreats . | . . . . Traps | -11 -10 -9 -9 ------- Run | Yrd Mat Mat Min Traps Triggered . | . . . . Indirectly . | . . . . Trap Hack Attempts . | . . . . Triggered . | . . . . Disarmed . | . . . . Reprogrammed . | . . . . Reused . | . . . . Traps Extracted . | . . . . Installed . | . . . . Triggered 1 | . . . 1 Machines | -11 -10 -9 -9 ---------- Run | Yrd Mat Mat Min Machines Disabled . | . . . . Max in Single Turn . | . . . . Machines Repaired . | . . . . Machines Dismantled . | . . . . Machines Sabotaged . | . . . . Overloaded Fab Kills . | . . . . Hacking | -11 -10 -9 -9 --------- Run | Yrd Mat Mat Min Machines Accessed 1 | . 1 . . Terminals 1 | . 1 . . Fabricators . | . . . . Repair Stations . | . . . . Recycling Units . | . . . . Scanalyzers . | . . . . Garrison Access . | . . . . Total Hacks 3 | . 3 . . Successful 1 | . 1 . . Failed 2 | . 2 . . Catastrophic . | . . . . Database Lockouts . | . . . . Manual 4 | . 4 . . Terminals 3 | . 3 . . Fabricators . | . . . . Repair Stations . | . . . . Recycling Units . | . . . . Scanalyzers . | . . . . Garrison Access . | . . . . Terminal Hacks 1 | . 1 . . Record 1 | . 1 . . Fabricator Hacks . | . . . . Repair Station Hacks . | . . . . Recycling Unit Hacks . | . . . . Scanalyzer . | . . . . Garrison Access Hacks . | . . . . Unauthorized Hacks . | . . . . Terminals . | . . . . Fabricators . | . . . . Repair Stations . | . . . . Recycling Units . | . . . . Scanalyzers . | . . . . Garrison Access . | . . . . Data Cores Recovered . | . . . . Used . | . . . . Hacking Detections 1 | . 1 . . Full Trace Events . | . . . . Feedback Events . | . . . . Feedback Blocked . | . . . . Robot Schematics Acquired . | . . . . Robots Built . | . . . . Authchips . | . . . . Time . | . . . . Total Robot Build Rating . | . . . . Part Schematics Acquired . | . . . . Parts Built . | . . . . Authchips . | . . . . Time . | . . . . Total Part Build Rating . | . . . . Parts Repaired . | . . . . Time . | . . . . Parts Recycled . | . . . . Recycled Matter . | . . . . Retrieved Matter . | . . . . Retrieved Components . | . . . . Parts Scanalyzed . | . . . . Part Schematics Acquired . | . . . . Parts Damaged . | . . . . Bothacking | -11 -10 -9 -9 ------------ Run | Yrd Mat Mat Min Used RIF Installer . | . . . . Robots Hacked . | . . . . Non-combat . | . . . . Combat . | . . . . Robot Hacks Applied . | . . . . Relay Couplers Released . | . . . . Fabnet Peak Effective % . | . . . . Robots Rewired . | . . . . Allies Hacked . | . . . . Hacks Repelled . | . . . . Allies | -11 -10 -9 -9 -------- Run | Yrd Mat Mat Min Total Allies . | . . . . Largest Group . | . . . . Highest-Rated Group . | . . . . Highest-Rated Ally . | . . . . Total Orders . | . . . . Ally Attacks . | . . . . Total Damage . | . . . . Kills . | . . . . Allies Corrupted . | . . . . Allies Melted . | . . . . Intel | -11 -10 -9 -9 ------- Run | Yrd Mat Mat Min Robot Analysis Total . | . . . . Derelict Logs Recovered 1 | . . . 1 Drone Launches . | . . . . Drone Recoveries . | . . . . Exploration | -11 -10 -9 -9 ------------- Run | Yrd Mat Mat Min Turns Passed 1465 | 115 307 540 503 Spaces Moved 775 | 71 184 261 259 Core 12 | 8 . 1 3 Treads 763 | 63 184 260 256 Legs . | . . . . Wheels . | . . . . Hover . | . . . . Flight . | . . . . Fastest Speed 50 | 50 160 160 150 Average Speed 159 | 147 160 160 160 Slowest Speed 250 | 160 160 250 240 Overloaded Moves . | . . . . Propulsion Burnouts . | . . . . Robots Hopped . | . . . . Cave-ins Triggered . | . . . . Exploration Rate (%) 19 | 4 19 15 38 Regions Visited 3 Branch Regions 1 Pre-discovered Areas . | . . . . Known Exits Taken . | . . . . Unknown Exits Taken 3 | 1 1 1 . Scrap Searched . | . . . . Spaces Dug . | . . . . Terrain Destroyed 41 | . . 36 5 Melee . | . . . . Projectile . | . . . . AOE 41 | . . 36 5 Terrain Rammed . | . . . . Walls Destroyed . | . . . . Machines Disabled . | . . . . Actions | -11 -10 -9 -9 --------- Run | Yrd Mat Mat Min Total 908 | 78 189 327 314 Wait 31 | . . 22 9 Move 772 | 70 183 260 259 Hop . | . . . . Pick Up 13 | 2 1 4 6 Fast Attach 14 | 6 1 7 . Attach 8 | . . 2 6 Detach . | . . . . Swap 7 | . . 4 3 Drop 8 | . . 2 6 Fire 48 | . 4 26 18 Melee . | . . . . Ram 6 | . . . 6 Kick . | . . . . Crush 1 | . . . 1 Escape Stasis . | . . . . Rewire . | . . . . Trap . | . . . . Miscellaneous . | . . . . Route ------- -11/Scrapyard -10/Materials -9/Materials -9/Mines (discovered 1 exit: [*Mat]) History --------- Turn | Location | Event 5 | -11/Scrapyard | Discovered new exit (range 14) 116 | -11/Scrapyard | Entered Materials 304 | -10/Materials | Build established: Mutant 330 | -10/Materials | Discovered new exit (range 9) 423 | -10/Materials | Entered another Materials area 423 | -9/Materials | Evolved 2 slots: Utility x1, Weapon x1 760 | -9/Materials | Build established: Skirmisher 921 | -9/Materials | Discovered new exit (range 13) 963 | -9/Materials | Entered Mines 967 | -9/Mines | Met a Derelict bent on vengeance 970 | -9/Mines | Learned 4 Materials zone layouts 1139 | -9/Mines | Build established: Scavenger-Skirmisher 1282 | -9/Mines | Assembled infested the area 1408 | -9/Mines | Discovered new exit (range 10) 1428 | -9/Mines | Core integrity fell below 50% 1446 | -9/Mines | Core integrity fell below 20% 1466 | -9/Mines | Destroyed by D-53 Grenadier with Mini Grenade Launcher Last Messages --------------- The unstable cave ceiling collapses. U-05 Engineer builds a Wall. U-05 Engineer lays Concrete. The unstable cave ceiling collapses. U-05 Engineer builds a Wall. Slammed into D-53 Grenadier. The unstable cave ceiling collapses. Lgt. Assault Rifle destroyed. Slammed into D-53 Grenadier. The unstable cave ceiling collapses. Y-45 Defender crushed by falling debris. Slammed into D-53 Grenadier. U-05 Engineer builds a Wall. The unstable cave ceiling collapses. Slammed into D-53 Grenadier. Destabilizing: System interference. Lgt. Assault Rifle temporarily disabled. The unstable cave ceiling collapses. Slammed into D-53 Grenadier. D-53 Grenadier knocked back. Map ----- +----------------------------------------------------+ | ?????????????????????????????????????????????????? | | ?????????????????????????????????????????????????? | | ?????????????????????????????????????????????????? | | ?????????????????????????????????????????????????? | | ?????????????????????????????????????????????????? | | ?????????????????????????????????????????????????? | | ?????????????????????????????????????????????????? | | ?????????????????????????????????????????????????? | | ?????????????????????????????????????????????????? | | ?????????????????????????????????????????????????? | | ?????????????????????????????????????????????????? | | ????????????????????????????##???????????????????? | | ???????????????????????????% ## ?????????????????? | | ??????????????????????????? % ??????????????????? | | ??????????????????????????? ??????????????????? | | ??????????????????????????? %???????????????????? | | ???????????????????????#### ? ????????????????? | | ???????????????????###?# # ?????????????????? | | ??????????????????##" ## # ?????????????????? | | ??????????????????#"" < ^ ??????????????????? | | #####?????####????#!| ???????????????????? | | # ##???## ##???#!! ##???????????????????? | | ##### ##??#"" # #???????????????????? | | ##??#" # = ##??????????????????? | | ##### ##?## # *d! #??????????????????? | | ###### ### @ #??????????????????? | | #####?# # # ##??????????????????? | | #?????# !! ! ######### ####????????????????? | | ??????# ! ! #### uu Y #????????????????? | | ????### ! #### #### ## #????????????????? | | ???## # ! ! ## # # #???????????????????? | | ???# ## ## ####???????????????????? | | ??## ######## ## ###?????????????????????? | | ?## ##??????# ### ###??????????????????????? | | ?# #####???# #?# #????????????????????????? | | ## #???# #?## ##?????????????????????????? | | ## #??## #??###???????????????????????????? | | ####### #?## ##???????????????????????????????? | | ####### #?# ##??????????????????????????????? | | #?# #??????????????????????????????? | | ######## ### ### ??????????????????? | | ???????# #????????????????????? | | ???????# ### #?????????????????????? | | ???????###########??? ####?????????????????????? | | ?????????????????????? ##????????????????????????? | | ?????????????????????????????????????????????????? | | ?????????????????????????????????????????????????? | | | | | | | +----------------------------------------------------+ Best States ------------- Heat Dissipation 38 Energy Generation 14 Energy Capacity 280 Matter Stores 300 Matter Capacity 300 Sight Range 16 Robot Scan Range 14 Terrain Scan Density 10 Resistance: KI 20 Resistance: TH 20 Resistance: EX 20 Resistance: EM 20 Resistance: I 20 Resistance: S 20 Resistance: P 20 Core Shielding 20 Evasion (%) 40 Recoil Reduction 2 Offensive Hacking 10 Item Schematics ----------------- None Robot Schematics ------------------ None Fabricated ------------ Nothing Alien Tech Used ----------------- None Achievements -------------- None Challenges ------------ None Game ------ Seed ShockSpliceProtomatter Manual? 0 Play Time 00:11:55 Cumulative 7.7 hours Start 2024.04.12 @ 17:41:58 End 2024.04.12 @ 17:53:11 Sessions 1 Manual Loads 0 Difficulty Adventurer Special Mode None Game No. 17 Rogue 0 Adventurer 17 Explorer 0 Win Type - Total 0 Types 0/0/0/0/0/0/0/0/0 Lore% 15 Gallery% 16 Achievement% 12 Wizard Run 0 Options --------- Layout 1 ASCII 0 Keyboard 0 Movement Arrows Keybinds 0 Fullscreen 1 Font 20/SmallcapsGlow Map View 50x35 Zoom Use 0% Tactical HUD 0 Map Filters NONE Filters NONE Steam 1 RUN: 0dbdf218-7184-4476-8efe-7bcc3abc68dd